Cogmind - Beta 16 @@@ ROGUE MODE // 2026.01.02 @ 20:04:09 Player: champi Result: Destroyed by D6-DDU(R) with Subdweller Laser Performance ------------- Evolutions (0) 0 Regions Visited (3) 600 Robots Destroyed (20) 100 Value Destroyed (345) 345 Prototype IDs (3) 60 Alien Tech Used (0) 0 Bonus (243) 243 TOTAL SCORE: 1348 Bonus ------- Follower Combat Kills 251 Friendly Fire -8 Cogmind --------- Core Integrity 0/250 Matter 271/300 Energy 14/160 System Corruption 1% Temperature Cool (6) Movement Core (550) Ox10 Location -10/Subcaves Parts ------- > --- POWER (1) -------- Light Nuclear Core > --- PROPULSION (2) --- (None) > --- UTILITY (2) ------ Large Storage Unit Light Armor Plating > --- WEAPON (2) ------- Beamcaster > --- INVENTORY (15) --- Light Ion Engine Improved Ion Engine Heat Sink Heat Sink Weight Redist. System Structural Scanner Structural Scanner Experimental Sensor Array ECM Suite ECM Suite Core Shielding Light Armor Plating Light Assault Rifle Peak State ------------ > --- POWER ------------ Ion Engine > --- PROPULSION ------- Light Treads Light Treads > --- UTILITY ---------- Large Storage Unit Experimental Sensor Array > --- WEAPON ----------- Small Laser Light Assault Rifle > --- INVENTORY -------- Ion Engine Light Ion Engine Light Treads Heat Sink Heat Sink Weight Redist. System Structural Scanner Structural Scanner ECM Suite ECM Suite Core Shielding Light Armor Plating Light Armor Plating EM Pulse Gun [Rating: 16] Favorites ----------- Power Ion Engine Engine Ion Engine Power Core Light Nuclear Core Propulsion Light Treads Treads Light Treads Leg Carbon-fiber Leg Utility Light Armor Plating Device Heat Sink Storage Large Storage Unit Protection Light Armor Plating Weapon Small Laser Energy Gun Small Laser Ballistic Gun Light Assault Rifle Special Melee Weapon Datajack Build | -11 -10 -10 -10 ------- Run | Yrd Mat Min Sub Slots Evolved . | . . . . Power . | . . . . Propulsion . | . . . . Utility . | . . . . Weapon . | . . . . Parts Attached 28 | 6 8 9 5 Power 3 | 1 . 1 1 Engine 2 | 1 . 1 . Core 1 | . . . 1 Reactor . | . . . . Propulsion 5 | 2 . 1 2 Treads 3 | 2 . 1 . Leg 2 | . . . 2 Wheel . | . . . . Hover . | . . . . Flight . | . . . . Utility 9 | 1 4 3 1 Device 2 | . 1 1 . Storage 3 | 1 2 . . Processor . | . . . . Hackware . | . . . . Protection 4 | . 1 2 1 Artifact . | . . . . Weapon 11 | 2 4 4 1 Energy Gun 6 | 2 3 . 1 Energy Cannon . | . . . . Ballistic Gun 4 | . . 4 . Ballistic Cannon . | . . . . Launcher . | . . . . Special Weapon . | . . . . Impact Weapon . | . . . . Slashing Weapon . | . . . . Piercing Weapon . | . . . . Special Melee Weapon 1 | . 1 . . Unidentified Prototypes 1 | . . 1 . Parts Lost 6 | . . 1 5 Power 1 | . . . 1 Propulsion 3 | . . 1 2 Utility 1 | . . . 1 Weapon 1 | . . . 1 Highest Loss Streak 5 | . . 1 5 To Critical Strikes 1 | . . . 1 Average Backups 12 | 1 10 14 14 Power 2 | . 1 2 3 Propulsion . | . . . . Utility 8 | . 5 10 10 Weapon . | . 1 . . Tool/Special . | . . . . Unused Backups 11 | . . 1 10 Power 3 | . . 1 2 Propulsion . | . . . . Utility 8 | . . . 8 Weapon . | . . . . Tool/Special . | . . . . Average Slot Usage (%) 97 | . 98 99 84 Engine 13 | . 14 14 8 Treads 25 | . 28 27 3 Leg 1 | . . . 18 Storage 14 | . 14 14 14 Protection 13 | . 12 13 12 Energy Gun 14 | . 27 2 2 Ballistic Gun 12 | . . 25 22 Peak Build Rating 16 | 6 8 16 15 Average Rating 8 | 4 7 9 12 On Entrance 6 | . 6 8 10 Avg Prop Armor Cover (%) . | . . . . Naked Turns . | . . . . Heaviest Build 32 | 13 30 32 32 Greatest Support 40 | 40 40 40 40 Greatest Overweight (x) 9 | . . 1 9 Average Overweight (x) . | . . . 1 Largest Inventory Capacity 15 | 8 15 15 15 Average Capacity 14 | 7 13 15 15 Most Carried 15 | 5 15 15 15 Average Carried 12 | 1 10 14 14 Final Capacity 15 | 8 15 15 15 Final Carried 15 | 2 15 14 13 Class Distribution -------------------- 100% | Mutant Dominant Class ---------------- Mutant | -10/Materials Mutant | -10/Mines Mutant | -10/Subcaves Resources | -11 -10 -10 -10 ----------- Run | Yrd Mat Min Sub Matter Collected 569 | 233 127 145 64 Remotely . | . . . . Salvage Created 536 | . 398 109 29 Parts 37 | . 21 11 5 Haulers Intercepted 2 | . 2 . . Recyclers Shooed . | . . . . Parts Field Recycled . | . . . . Retrieved Matter . | . . . . Parts Self-Destructed 9 | . . . 9 Prevented . | . . . . Parts Restored . | . . . . Kills | -11 -10 -10 -10 ------- Run | Yrd Mat Min Sub Combat Hostiles Destroyed 13 | . 8 3 2 Guns 13 | . 8 3 2 Classes Destroyed 7 | . 5 2 . Tunneler 1 | . . 1 . Hauler 2 | . 2 . . Mechanic 1 | . . 1 . Operator 1 | . 1 . . Watcher 2 | . 2 . . Swarmer 8 | . 3 3 2 Grunt 5 | . 5 . . Best Kill Streak 4 | . 4 2 2 Combat Bots Only 4 | . 4 2 2 Max Kills in Single Turn 2 | . 2 1 1 Gunslinging . | . . . . Exploded . | . . . . Melee . | . . . . Uniques/NPCs Destroyed . | . . . . Combat | -11 -10 -10 -10 -------- Run | Yrd Mat Min Sub Hostile Shots Fired 151 | . 35 46 70 Missed 48 | . 8 14 26 Hits 103 | . 27 32 44 Projectile 103 | . 27 32 44 AOE 3 | . . . 3 Critical Strikes 1 | . . . 1 Damage Taken 1590 | . 296 373 921 Core 256 | . 21 17 218 Absorbed by Shields . | . . . . Core Remaining (%) 100 | 100 . . . Volleys Fired 90 | . 50 16 24 Largest 2 | . 2 2 2 Hottest 98 | . 80 80 98 Shots Fired 174 | . 100 34 40 Gun 174 | . 100 34 40 Cannon . | . . . . Launcher . | . . . . Special . | . . . . Kinetic 57 | . . 26 31 Thermal 116 | . 99 8 9 Explosive . | . . . . Electromagnetic 1 | . 1 . . Robot Hit Streak 17 | . 10 17 7 Robot Miss Streak 8 | . 4 4 8 Penetration Max . | . . . . Secondary Targets 2 | . . 2 . Max Gunslinging Chain 1 | . . 1 . Shots Hit Robots 109 | . 61 27 21 Core Hits 39 | . 22 10 7 Critical Kills . | . . . . Critical Parts Destroyed . | . . . . Critical Strikes 2 | . . . 2 Burn 2 | . . . 2 Melee Attacks 1 | . 1 . . Impact . | . . . . Slashing . | . . . . Piercing . | . . . . Sneak Attacks 1 | . 1 . . Combat Hostiles 1 | . 1 . . Follow-up Attacks . | . . . . Damage Inflicted 1253 | . 677 231 345 Guns 1253 | . 677 231 345 Cannons . | . . . . Explosions . | . . . . Melee . | . . . . Ramming . | . . . . Kinetic 355 | . . 177 178 Thermal 883 | . 662 54 167 Explosive . | . . . . Electromagnetic 15 | . 15 . . Impact . | . . . . Slashing . | . . . . Piercing . | . . . . Highest Corruption 1 | . 1 1 1 Average Corruption 1 | . 1 1 1 Corruption Purged . | . . . . Corruption Blocked . | . . . . Effects 7 | . 1 6 . Message Errors 1 | . . 1 . Matter Fused 2 | . . 2 . Energy Discharges 2 | . 1 1 . Misfires 2 | . . 2 . Overload Shots . | . . . . Overflow Damage . | . . . . Projectiles . | . . . . Explosions . | . . . . Melee . | . . . . Knockbacks . | . . . . Impact . | . . . . Kinetic . | . . . . Secondary . | . . . . Self-Inflicted Damage . | . . . . Shots . | . . . . Rammed . | . . . . Targets Rammed . | . . . . Kicked . | . . . . Crushed . | . . . . Highest Temperature 351 | . 351 84 7 Average Temperature 67 | . 78 32 2 Received Heat Transfer 516 | . 141 153 222 Effects 3 | . 3 . . Interference 3 | . 3 . . Siege Activations . | . . . . Martial Activations . | . . . . Shielding Activations . | . . . . Robots Disrupted . | . . . . Combat Hostiles . | . . . . Robots Corrupted . | . . . . Combat Hostiles . | . . . . Parts Fried . | . . . . Impact Corruptions . | . . . . Robots Melted . | . . . . Combat Hostiles . | . . . . Parts Melted . | . . . . Heat Transferred 2069 | . 1500 125 444 Parts Sabotaged . | . . . . Parts Stolen . | . . . . Parts Stripped . | . . . . Power Chain Reactions . | . . . . Alert | -11 -10 -10 -10 ------- Run | Yrd Mat Min Sub Maximum Alert Level . | . . . . Low Security (%) 100 | 100 100 100 . Level 1 . | . . . . Level 2 . | . . . . Level 3 . | . . . . Level 4 . | . . . . Level 5 . | . . . . High Security . | . . . . Max Security . | . . . . Peak Influence 101 | . 90 101 . Initial . | . . . . Average 21 | . 15 31 . Influence Increases 781 | . 294 411 76 Destroy 0b10 Robot/C 480 | . 160 280 40 Destroy 0b10 Robot/NC 35 | . 25 10 . Destroy Leader 108 | . 58 50 . Allied During Kill 62 | . . 56 6 Successful Hack 21 | . 21 . . Disable Machine 15 | . . 15 . Lose Combat Pursuer 60 | . 30 . 30 Influence Decreases 781 | . 294 387 100 Entered New Map 13 | . . . 13 Time Decay 679 | . 275 377 27 Lost Part 10 | . . 10 . Lost Ally 60 | . . . 60 Purge Threat 19 | . 19 . . Squads Dispatched 4 | . 3 1 . Investigation 2 | . 2 . . Extermination . | . . . . Reinforcement 1 | . 1 . . Assault 1 | . . 1 . Garrison . | . . . . Intercept . | . . . . Searches Triggered . | . . . . Construction Impeded . | . . . . Haulers Reinforced . | . . . . Active Scanning Responses . | . . . . Cargo Convoy Interrupts . | . . . . Stealth | -11 -10 -10 -10 --------- Run | Yrd Mat Min Sub Distress Signals 2 | . 2 . . Communications Jammed . | . . . . Distress Signals . | . . . . Times Spotted 48 | . 16 15 17 Peak Tracking Total 6 | . 5 3 6 Tactical Retreats 2 | . 1 . 1 Traps | -11 -10 -10 -10 ------- Run | Yrd Mat Min Sub Traps Triggered . | . . . . Indirectly . | . . . . Trap Hack Attempts . | . . . . Triggered . | . . . . Disarmed . | . . . . Reprogrammed . | . . . . Reused . | . . . . Traps Extracted . | . . . . Installed . | . . . . Triggered . | . . . . Machines | -11 -10 -10 -10 ---------- Run | Yrd Mat Min Sub Machines Disabled 1 | . . 1 . Max in Single Turn . | . . . . Machines Repaired . | . . . . Machines Dismantled . | . . . . Machines Sabotaged . | . . . . Overloaded Fab Kills . | . . . . Hacking | -11 -10 -10 -10 --------- Run | Yrd Mat Min Sub Machines Accessed 9 | . 9 . . Terminals 7 | . 7 . . Fabricators . | . . . . Repair Stations . | . . . . Recycling Units 2 | . 2 . . Scanalyzers . | . . . . Garrison Access . | . . . . Total Hacks 34 | . 34 . . Successful 15 | . 15 . . Failed 19 | . 19 . . Catastrophic 4 | . 4 . . Database Lockouts . | . . . . Manual 13 | . 13 . . Terminals 30 | . 30 . . Fabricators . | . . . . Repair Stations . | . . . . Recycling Units 4 | . 4 . . Scanalyzers . | . . . . Garrison Access . | . . . . Terminal Hacks 13 | . 13 . . Record 3 | . 3 . . Prototype ID Bank 1 | . 1 . . Branch Access Points 1 | . 1 . . Terminal Index 1 | . 1 . . Unreport Threat 2 | . 2 . . Locate Traps 1 | . 1 . . Dispatch Records 1 | . 1 . . Transport Status 1 | . 1 . . Hauler Manifests 1 | . 1 . . Zone Layout 1 | . 1 . . Fabricator Hacks . | . . . . Repair Station Hacks . | . . . . Recycling Unit Hacks 2 | . 2 . . Report Inventory 1 | . 1 . . Retrieve Components 1 | . 1 . . Scanalyzer . | . . . . Garrison Access Hacks . | . . . . Unauthorized Hacks . | . . . . Terminals . | . . . . Fabricators . | . . . . Repair Stations . | . . . . Recycling Units . | . . . . Scanalyzers . | . . . . Garrison Access . | . . . . Data Cores Recovered . | . . . . Used . | . . . . Hacking Detections 8 | . 8 . . Full Trace Events 3 | . 3 . . Feedback Events 1 | . 1 . . Corruption 1 | . 1 . . Feedback Blocked . | . . . . Robot Schematics Acquired . | . . . . Robots Built . | . . . . Authchips . | . . . . Time . | . . . . Total Robot Build Rating . | . . . . Part Schematics Acquired . | . . . . Parts Built . | . . . . Authchips . | . . . . Time . | . . . . Total Part Build Rating . | . . . . Part Studies Acquired . | . . . . Parts Repaired . | . . . . Time . | . . . . Parts Recycled . | . . . . Recycled Matter . | . . . . Retrieved Matter . | . . . . Retrieved Components 2 | . 2 . . Parts Scanalyzed . | . . . . Part Schematics Acquired . | . . . . Parts Damaged . | . . . . Bothacking | -11 -10 -10 -10 ------------ Run | Yrd Mat Min Sub Used RIF Installer . | . . . . Robots Hacked 1 | . 1 . . Non-combat . | . . . . Combat 1 | . 1 . . Robot Hacks Applied 1 | . 1 . . parse_system 1 | . 1 . . Relay Couplers Released . | . . . . Fabnet Peak Effective % . | . . . . Robots Rewired . | . . . . Allies Hacked . | . . . . Hacks Repelled . | . . . . Allies | -11 -10 -10 -10 -------- Run | Yrd Mat Min Sub Total Allies 3 | . . 3 . Largest Group 3 | . . 3 3 Highest-Rated Group 73 | . . 73 73 Highest-Rated Ally 31 | . . 31 31 Total Orders . | . . . . Ally Attacks 49 | . . 41 8 Total Damage 710 | . . 542 168 Kills 11 | . . 11 . Allies Corrupted . | . . . . Allies Melted . | . . . . Intel | -11 -10 -10 -10 ------- Run | Yrd Mat Min Sub Active Infowar (turns) 2 | . . 2 . Sensors 2 | . . 2 . Robot Analysis Total . | . . . . Derelict Logs Recovered 1 | . . 1 . Drone Launches . | . . . . Drone Recoveries . | . . . . Exploration | -11 -10 -10 -10 ------------- Run | Yrd Mat Min Sub Turns Passed 2922 | 79 1393 1190 260 Spaces Moved 1545 | 62 740 645 98 Core 36 | 30 . . 6 Treads 1423 | 32 740 645 6 Legs 86 | . . . 86 Wheels . | . . . . Hover . | . . . . Flight . | . . . . Fastest Speed 50 | 50 160 160 120 Average Speed 160 | 106 160 160 192 Slowest Speed 500 | 160 160 240 500 Overloaded Moves . | . . . . Propulsion Burnouts . | . . . . Robots Hopped . | . . . . Potential Cave-ins . | . . . . Cave-ins Triggered . | . . . . Exploration Rate (%) 49 | 3 90 94 9 Regions Visited 3 Branch Regions 2 Pre-discovered Areas . | . . . . Known Exits Taken 1 | . 1 . . Unknown Exits Taken 2 | 1 . 1 . Scrap Searched 2 | . . 2 . Spaces Dug . | . . . . Terrain Destroyed . | . . . . Melee . | . . . . Projectile . | . . . . AOE . | . . . . Terrain Rammed . | . . . . Walls Destroyed . | . . . . Machines Disabled . | . . . . Actions | -11 -10 -10 -10 --------- Run | Yrd Mat Min Sub Total 1833 | 74 849 778 132 Wait 112 | . 26 86 . Move 1542 | 61 739 644 98 Hop . | . . . . Pick Up 37 | 7 18 9 3 Fast Attach 5 | 1 . 4 . Attach 17 | 5 5 3 4 Detach 1 | . 1 . . Swap 9 | . 5 3 1 Drop 19 | . 4 13 2 Fire 90 | . 50 16 24 Melee 1 | . 1 . . Ram . | . . . . Kick . | . . . . Crush . | . . . . Escape Stasis . | . . . . Rewire . | . . . . Trap . | . . . . Miscellaneous . | . . . . Route ------- -11/Scrapyard -10/Materials (discovered 4 exits: [*Mat x2] / *Min / [*Sub]) -10/Mines (discovered 3 exits: [*Mat x2] / [*Sub]) -10/Subcaves (discovered 1 exit: [*Rec]) History --------- Turn | Location | Event 3 | -11/Scrapyard | Discovered new exit (range 16) 80 | -11/Scrapyard | Entered Materials 305 | -10/Materials | Build established: Mutant 418 | -10/Materials | Discovered new exit (range 13) 556 | -10/Materials | Identified exit to Mines 981 | -10/Materials | Discovered new exit (range 6) 1032 | -10/Materials | Discovered new exit (range 3) 1288 | -10/Materials | Discovered new exit (range 7) 1473 | -10/Materials | Entered Mines 1596 | -10/Mines | Found a damaged Exp. Sensor Array with a note attached 1600 | -10/Mines | Found Prototype Device 1602 | -10/Mines | Identified Exp. Sensor Array 1614 | -10/Mines | Discovered new exit (range 9) 1764 | -10/Mines | Received a Rocket Launcher from a helpful Derelict 1797 | -10/Mines | Met a Derelict testing a Signal Generator 2118 | -10/Mines | Discovered new exit (range 3) 2279 | -10/Mines | Discovered new exit (range 11) 2316 | -10/Mines | Joined a pair of Derelicts in attacking an 0b10 outpost 2395 | -10/Mines | Found a hidden stash of uninstalled traps 2663 | -10/Mines | Entered Subcaves 2663 | -10/Subcaves | Accompanied by 3 allies 2663 | -10/Subcaves | Discovered new exit (range 15) 2668 | -10/Subcaves | Led the pair of lost Derelicts to an unsafe place 2723 | -10/Subcaves | Lost 3 allies 2822 | -10/Subcaves | Ambushed by swarm of Subdwellers 2863 | -10/Subcaves | Lost 4 allies 2865 | -10/Subcaves | Core integrity fell below 50% 2905 | -10/Subcaves | Lost 5 parts (1p2n1u1w) 2914 | -10/Subcaves | Core integrity fell below 20% 2923 | -10/Subcaves | Destroyed by D6-DDU(R) with Subdweller Laser Last Messages --------------- 63-O35(R) emerges from the Twisted Machinery. 14-42A(R) emerges from the Twisted Machinery. 8Z-OU6(h) destroyed. 8W-UAC(g) destroyed. 8T-40G(g) destroyed. U3-6W1(R) emerges from the Twisted Machinery. 14-42A(R) destroyed. CP-T2X(g) destroyed. EQ-SV7(R) affixes Scrap Shield Fragment to Scrap Shield. U3-6W1(R) destroyed. IG-5QD(R) destroyed. SL-WZY(R) affixes Scrap Shield Fragment to Scrap Shield. Lgt. Armor Plating destroyed. Carbon-fiber Leg destroyed. SL-WZY(R) destroyed. Carbon-fiber Leg destroyed. Hvy. Assault Rifle destroyed. D6-DDU(R) suffers critical hit (Burn). Map ----- +----------------------------------------------------+ | ?## ?????????????????????????????????????? | | ?# ??????????????????????????????????????? | | ? ???????????????????????????????????????? | | ?# ##??????????????????????????????????????? | | ## ???????????????????????????????????????? | | #????????????????????????????????????????? | | #????????????????????????????????????????? | | ####?????????????????????????????????????? | | ##????????????????????????????????????? | | = #????????????????????????????????????? | | %!#????????????????????????????????????? | | ! #????????????????????????????????????? | | ## #????????????????????????????????????? | | ?## #????????????????????????????????????? | | ??##% %#????????????????????????????????????? | | ???# % #????????????????????????????????????? | | ####% %####?????????????????????????????????? | | #" "#?????????????????????????????????? | | # #?????????????????????????????????? | | # #???????????????????#?????????????? | | #" % % %"#??##?????????????? #?????????????? | | #" " #### #####???????? #?????????????? | | #""" % "## ##?????? #??????????????? | | #####<#"#### "#?????# #??????????????? | | ?## ### # ## "#??### #??????????????? | | ## ### """" "#### @ #???????????????? | | # " ## ##???????????????? | | # %! R #????????????????? | | # "# R #????????????????? | | # ### ### ##????????????????? | | #"" ; #? ##?????????????????? | | ##"""""# ####? #??????????????????? | | ###########??? #??????????????????? | | #????????????? ??????????????????? | | %"#### ##????????????? ??????????????????? | | &"????##????????????? ??????????????????? | | =#??????????????????? ## ??????????????????? | | #???????????????????#?# ?????????????????? | | ""#?????????????????????# ?????????????????? | | "##??????????????????????# ?????????????????? | | #???????????????????????? ?????????????????? | | #??????????????????????????????????????????? | | #??????????????????????????????????????????? | | #??????????????????????????????????????????? | | #??????????????????????????????????????????? | | ##??????????????????????????????????????????? | | ????????????????????????????????????????????? | | ????????????????????????????????????????????? | | ????????????????????????????????????????????? | | ????????????????????????????????????????????? | +----------------------------------------------------+ Best States ------------- Heat Dissipation 25 Energy Generation 10 Energy Capacity 250 Matter Stores 300 Matter Capacity 300 Sight Range 16 Terrain Scan Density 10 Armor Coverage 150 Evasion (%) 55 Recoil Reduction 2 Item Schematics ----------------- None Robot Schematics ------------------ None Fabricated ------------ Nothing Repaired ---------- Nothing Studied --------- None Alien Tech Used ----------------- None Achievements -------------- None Challenges ------------ None Game ------ Seed UltimateMetafieldBuckler Manual? 0 Play Time 00:34:30 Cumulative 6.1 hours Start 2026.01.02 @ 19:29:15 End 2026.01.02 @ 20:04:09 Sessions 1 Manual Loads 0 Difficulty Rogue Special Mode None Game No. 7 Rogue 7 Adventurer 0 Explorer 0 Win Type - Total 0 Types 0/0/0/0/0/0/0/0/0/0 Lore% 3 Gallery% 6 Achievement% 8 Wizard Run 0 Options --------- Layout 1 ASCII 0 Keyboard 0 Movement Mouse Keybinds 0 Fullscreen 1 Font 24/Smallcaps Map View 50x35 Zoom Use 0% Tactical HUD 0 Map Filters NONE Filters NONE Steam 1 RUN: 57e416e0-24c7-4ef8-84f8-077092339582